bitfinex-derivatives/quotes_BNBF0:USTF0_20251010
["timestamp","ask_amount","ask_price","bid_price","bid_amount"]
[1760122568316,0.14184137,1227.4,1225.7,0.52113278]
[1760122568515,0.14184137,1227.4,1225.8,0.52113278]
[1760122568816,0.14184137,1227.4,1225.9,0.52113278]
[1760122569020,0.14184137,1227.4,1226.0,0.52113278]
[1760122569221,0.14184137,1227.4,1225.3,0.60808328]
[1760122569516,0.14184137,1227.4,1225.4,0.52098313]
[1760122569719,0.14184137,1227.4,1225.5,0.52098313]
[1760122569917,0.14184137,1227.4,1225.6,0.52098313]
[1760122570122,1.34954469,1227.4,1224.7,0.60808328]
[1760122570321,1.34954469,1227.4,1224.8,1.12929972]
[1760122570520,1.34954469,1227.4,1224.9,0.52121644]
[1760122570721,1.34954469,1227.4,1225.0,0.52121644]
[1760122570916,0.80370816,1227.0,1224.6,0.60808328]
[1760122571319,0.80370816,1227.0,1224.7,0.60808328]
[1760122571621,0.80370816,1227.0,1224.6,0.60808328]
[1760122572117,0.80370816,1227.0,1224.7,0.60808328]
[1760122574023,0.80370816,1227.0,1224.4,0.8075515]
[1760122574224,0.80370816,1227.0,1224.7,0.60670179]
[1760122574424,0.80370816,1226.9,1224.7,0.60670179]
[1760122574820,0.80370816,1227.1,1224.5,0.60670179]
[1760122575226,0.80370816,1227.0,1224.4,0.60670179]
[1760122575425,0.80370816,1226.9,1224.3,0.60670179]
[1760122576523,0.80370816,1226.9,1224.4,0.60670179]
[1760122576724,0.80370816,1226.6,1224.5,0.60670179]
[1760122576928,0.80370816,1226.8,1224.8,0.60670179]
[1760122577426,0.80370816,1226.9,1224.8,0.60670179]
[1760122577728,0.80370816,1226.9,1224.9,0.60670179]
[1760122578028,0.80370816,1226.9,1225.0,0.60670179]
[1760122578526,0.80370816,1227.0,1225.0,0.60670179]
[1760122579227,0.80370816,1227.1,1225.1,0.60670179]
[1760122583431,0.80370816,1227.0,1225.1,0.60670179]
[1760122583630,0.80370816,1227.0,1225.0,0.60670179]
[1760122584936,0.80370816,1226.9,1225.0,0.60670179]
[1760122585237,0.80370816,1226.9,1224.9,0.60670179]
[1760122585936,0.80370816,1226.9,1224.8,0.60670179]
[1760122586732,0.80370816,1226.8,1224.8,0.60670179]
[1760122586936,0.80370816,1226.7,1224.7,0.60670179]
[1760122587636,0.80370816,1226.9,1224.8,0.60670179]
[1760122587838,0.80370816,1226.8,1224.9,0.60670179]
[1760122589137,0.80370816,1226.9,1224.8,0.60670179]
[1760122590034,0.80370816,1226.9,1224.9,0.60670179]
[1760122590537,0.80370816,1227.0,1224.9,0.60670179]
[1760122592037,0.80370816,1227.0,1224.8,0.60670179]
[1760122595433,0.80370816,1227.0,1224.9,0.60670179]
[1760122596638,0.80370816,1226.9,1224.8,0.60670179]
[1760122596837,0.80370816,1226.8,1224.8,0.60670179]
[1760122597136,0.80370816,1226.8,1224.9,0.60670179]
[1760122597833,0.80370816,1226.7,1224.9,0.60670179]
[1760122598034,0.80370816,1226.8,1224.9,0.60670179]
[1760122598234,0.80370816,1226.7,1224.9,0.60670179]
[1760122598637,0.80370816,1226.8,1224.9,0.60670179]
[1760122600839,0.80370816,1226.8,1225.0,0.60670179]
[1760122601041,0.80370816,1227.0,1225.1,0.60670179]
[1760122602640,0.80370816,1227.1,1225.1,0.60670179]
[1760122603939,0.80370816,1227.2,1225.1,0.60670179]
[1760122604240,0.14184137,1227.4,1225.0,0.60670179]
[1760122604543,0.14184137,1227.4,1225.2,0.60670179]
[1760122604745,0.94554953,1227.4,1225.3,0.60670179]
[1760122605247,0.80370816,1227.2,1225.3,0.60670179]
[1760122605745,0.80370816,1227.3,1225.3,0.60670179]
[1760122611863,0.80370816,1227.3,1225.4,0.60670179]
[1760122616462,0.80370816,1227.2,1225.4,0.60670179]
[1760122616766,0.80370816,1227.3,1225.4,0.60670179]
[1760122617063,0.80370816,1227.2,1225.3,0.60670179]
[1760122618266,0.80370816,1227.1,1225.3,0.60670179]
[1760122619067,0.80370816,1227.1,1225.2,0.60670179]
[1760122624565,0.80370816,1226.9,1225.0,0.60670179]
[1760122625266,0.80370816,1226.8,1224.8,0.60670179]
[1760122625467,0.80370816,1226.7,1224.8,0.60670179]
[1760122625666,0.80370816,1226.8,1224.8,0.60670179]
[1760122626972,0.80370816,1226.9,1225.0,0.60670179]
[1760122627270,0.80370816,1227.0,1225.2,0.60670179]
[1760122627766,0.80370816,1227.1,1225.2,0.60670179]
[1760122628372,0.80370816,1227.0,1225.3,0.60670179]
[1760122630272,0.80370816,1226.9,1225.4,0.60670179]
[1760122631573,0.80370816,1227.0,1225.4,0.60670179]
[1760122632072,0.80370816,1227.0,1225.5,0.60670179]
[1760122634181,0.80370816,1227.1,1225.5,0.60670179]
[1760122634875,0.80370816,1227.2,1225.6,0.60670179]
[1760122635578,0.94554953,1227.4,1225.5,0.60670179]
[1760122636983,0.80370816,1227.3,1225.4,0.60670179]
[1760122640483,0.14184137,1227.4,1225.4,0.60670179]
[1760122640484,0.94554953,1227.4,1225.4,0.60670179]
[1760122642085,0.80370816,1227.3,1225.4,0.60670179]
[1760122642486,0.94554953,1227.4,1225.4,0.60670179]
[1760122645588,0.14184137,1227.4,1225.5,0.60670179]
[1760122646988,0.94554953,1227.4,1225.5,0.60670179]
[1760122647286,0.94554953,1227.4,1225.2,0.8075515]
[1760122647287,0.14184137,1227.4,1225.6,0.60670179]
[1760122647686,0.14184137,1227.4,1225.5,0.60670179]
[1760122647891,0.94554953,1227.4,1225.5,0.60670179]
[1760122648391,0.80370816,1227.3,1225.5,0.60670179]
[1760122648688,0.80370816,1227.2,1225.6,0.60670179]
[1760122651089,0.14184137,1227.4,1225.2,0.60670179]
[1760122659101,0.80370816,1227.2,1225.2,0.60670179]
[1760122659399,0.80370816,1226.8,1225.3,0.60670179]
[1760122659596,0.80370816,1226.9,1225.2,0.60670179]
[1760122660904,0.80370816,1226.8,1225.2,0.60670179]
[1760122661100,0.80370816,1226.6,1225.1,0.60670179]
[1760122661303,0.80370816,1226.5,1225.0,0.60670179]
[1760122661904,0.80370816,1226.4,1224.9,0.60670179]
[1760122662099,0.80370816,1226.2,1224.8,0.60670179]
[1760122662803,0.80370816,1226.2,1224.7,0.60670179]
[1760122663001,0.80370816,1226.1,1224.6,0.60670179]
[1760122663903,0.80370816,1226.2,1224.6,0.60670179]
[1760122665215,0.80370816,1226.3,1224.5,0.60670179]
[1760122665611,0.80370816,1226.2,1224.4,0.60670179]
[1760122667117,0.80370816,1226.4,1224.5,0.60670179]
[1760122668918,0.80370816,1226.5,1224.5,0.60670179]
[1760122670717,0.80370816,1226.6,1224.5,0.60670179]
[1760122670916,0.80370816,1226.8,1224.4,0.60670179]
[1760122674218,0.80370816,1226.9,1224.4,0.60670179]
[1760122674521,0.80370816,1226.9,1224.3,0.60670179]
[1760122677022,0.80370816,1226.8,1224.2,0.60670179]
[1760122679319,0.80370816,1226.9,1224.2,0.60670179]
[1760122679622,0.80370816,1226.8,1224.2,0.60670179]
[1760122681024,0.80370816,1226.7,1224.3,0.60670179]
[1760122682126,0.80370816,1226.7,1224.2,0.60670179]
[1760122683123,0.80370816,1226.7,1224.3,0.60670179]
[1760122683423,0.80370816,1226.7,1224.4,0.60670179]
[1760122683624,0.80370816,1226.6,1224.4,0.60670179]
[1760122684225,0.80370816,1226.7,1224.4,0.60670179]
[1760122684423,0.80370816,1226.6,1224.4,0.60670179]
[1760122685528,0.80370816,1226.7,1224.4,0.60670179]
[1760122686827,0.80370816,1226.6,1224.4,0.60670179]
[1760122687230,0.80370816,1227.1,1224.2,0.60670179]
[1760122687429,0.80370816,1227.0,1224.1,0.60670179]
[1760122689431,0.80370816,1226.5,1224.2,0.60670179]
[1760122689625,0.80370816,1226.3,1224.1,0.60670179]
[1760122690131,0.80370816,1226.4,1224.0,0.60670179]
[1760122691128,0.80370816,1226.5,1223.9,0.60670179]
[1760122691827,0.80370816,1226.6,1224.0,0.60670179]
[1760122692232,0.80370816,1226.6,1223.9,0.60670179]
[1760122692534,0.80370816,1226.7,1223.9,0.60670179]
[1760122693529,0.80370816,1226.6,1224.1,0.60670179]
[1760122693727,0.80370816,1226.7,1224.2,0.60670179]
[1760122695028,0.80370816,1226.8,1224.2,0.60670179]
[1760122695327,0.80370816,1226.7,1224.2,0.60670179]
[1760122699931,0.80370816,1226.6,1224.2,0.60670179]
[1760122700130,0.80370816,1226.5,1224.1,0.60670179]
[1760122700536,0.80370816,1226.4,1224.1,0.60670179]
[1760122700834,0.80370816,1226.3,1224.1,0.60670179]
[1760122701631,0.80370816,1226.5,1224.0,0.60670179]
[1760122702432,0.80370816,1226.3,1223.8,0.60587116]
[1760122703433,0.80370816,1226.2,1223.8,0.60587116]
[1760122705833,0.80370816,1226.3,1224.0,0.60587116]
[1760122706437,0.80370816,1226.4,1224.0,0.60587116]
[1760122707139,0.80370816,1226.3,1224.0,0.60587116]
[1760122708538,0.80370816,1226.2,1224.0,0.60587116]
[1760122710136,0.80370816,1226.2,1223.8,0.60587116]
[1760122710538,0.80370816,1226.1,1223.8,0.60587116]
[1760122712039,0.80370816,1226.1,1223.6,0.8075515]
[1760122712239,0.80370816,1225.9,1223.9,0.60707586]
[1760122712438,0.80370816,1225.8,1223.8,0.60707586]
[1760122713243,0.80370816,1225.7,1223.8,0.60707586]
[1760122713443,0.80370816,1225.8,1223.8,0.60707586]
[1760122714140,0.80370816,1226.0,1223.5,0.60707586]
[1760122714445,0.80370816,1226.0,1223.4,0.60707586]
[1760122715140,0.80370816,1226.0,1223.5,0.60707586]
[1760122715340,0.80370816,1226.0,1223.4,0.60707586]
[1760122715639,0.80370816,1226.0,1223.5,0.60707586]
[1760122715841,0.80370816,1225.9,1223.5,0.60707586]
[1760122716045,0.80370816,1225.8,1223.5,0.60707586]
[1760122716245,0.80370816,1225.9,1223.5,0.60707586]
[1760122716446,0.80370816,1226.0,1223.6,0.60707586]
[1760122716748,0.80370816,1225.8,1223.7,0.60707586]
[1760122716946,0.80370816,1225.8,1223.8,0.60707586]
[1760122717245,0.80370816,1225.9,1223.9,0.60707586]
[1760122717643,0.80370816,1226.0,1223.8,0.60707586]
[1760122719245,0.80370816,1225.9,1223.8,0.60707586]
[1760122719747,0.80370816,1226.0,1223.9,0.60707586]
[1760122719947,0.80370816,1225.8,1223.9,0.60707586]
[1760122720145,0.80370816,1225.8,1224.0,0.60707586]
[1760122722046,0.80370816,1225.7,1224.0,0.60707586]
[1760122723046,0.80370816,1225.9,1224.0,0.60707586]
[1760122723249,0.80370816,1226.0,1224.1,0.60707586]
[1760122724848,0.80370816,1225.9,1223.9,0.60707586]
[1760122726050,0.80370816,1225.8,1223.8,0.60707586]
[1760122726547,0.80370816,1225.7,1223.8,0.60707586]
[1760122727146,0.80370816,1225.7,1223.7,0.60707586]
[1760122727750,0.80370816,1225.6,1223.6,0.60707586]
[1760122728349,0.80370816,1225.4,1223.7,0.60707586]
[1760122731557,0.80370816,1225.5,1223.7,0.60707586]
[1760122733752,0.80370816,1225.5,1223.6,0.60707586]
[1760122734860,0.80370816,1225.5,1223.7,0.60707586]
[1760122735060,0.80370816,1225.4,1223.7,0.60707586]
[1760122735462,0.80370816,1225.5,1223.6,0.60707586]
[1760122737167,0.80370816,1225.5,1223.7,0.60707586]
[1760122737366,0.80370816,1226.1,1223.7,0.60707586]
[1760122738166,0.80370816,1225.9,1223.6,0.60707586]
[1760122739168,0.80370816,1225.8,1223.6,0.60707586]
[1760122739667,0.80370816,1225.7,1223.6,0.60707586]
[1760122739867,0.80370816,1225.6,1223.5,0.60707586]
[1760122740065,0.80370816,1225.6,1223.4,0.60707586]
[1760122740572,0.80370816,1225.2,1223.2,0.60707586]
[1760122740771,0.80370816,1225.2,1223.0,0.94966627]
[1760122740967,0.80370816,1225.4,1223.1,0.60854271]
[1760122741267,0.80370816,1225.3,1223.0,0.75065748]
[1760122741571,0.80370816,1225.3,1223.0,0.14211477]
[1760122741871,0.80370816,1225.3,1223.0,0.75065748]
[1760122742167,0.80370816,1225.4,1223.0,0.75065748]
[1760122742372,0.80370816,1225.4,1222.9,0.60854271]
[1760122742667,0.80370816,1225.4,1222.9,0.75068883]
[1760122742871,0.80370816,1225.1,1223.1,0.60854271]
[1760122743071,0.80370816,1225.2,1223.0,0.60854271]
[1760122743272,0.80370816,1225.1,1223.0,0.60854271]
[1760122743668,0.80370816,1225.2,1223.0,0.60854271]
[1760122745971,0.80370816,1225.1,1222.9,0.75068883]
[1760122746272,0.80370816,1225.2,1222.9,0.75068883]
[1760122746468,0.80370816,1225.1,1222.9,0.60854271]
[1760122747070,0.80370816,1225.1,1222.8,0.60854271]
[1760122747472,0.80370816,1225.0,1222.8,0.60854271]
[1760122747976,0.80370816,1224.9,1222.8,0.60854271]
[1760122748876,0.80370816,1225.0,1222.8,0.60854271]
[1760122750575,0.80370816,1225.2,1222.7,0.14216586]
[1760122751283,0.80370816,1225.3,1222.7,0.14216586]
[1760122752080,0.80370816,1225.4,1222.7,0.75070857]
[1760122752278,0.80370816,1225.5,1222.7,0.75070857]
[1760122752577,0.80370816,1225.5,1222.8,0.60854271]
[1760122754477,0.80370816,1225.6,1222.7,0.14216586]
[1760122757080,0.80370816,1225.1,1222.7,0.14216586]
[1760122757881,0.80370816,1224.9,1222.7,0.14216586]
[1760122758084,0.80370816,1225.0,1222.7,0.14216586]
[1760122759383,0.14217458,1224.5,1222.7,0.14216586]
[1760122766287,0.14217458,1224.5,1222.3,0.60854271]
[1760122766486,0.14217458,1224.5,1222.5,0.14218619]
[1760122770992,0.14217458,1224.5,1222.5,0.7507289]
[1760122771794,0.14217458,1224.5,1222.6,0.60854271]
[1760122772090,0.14217458,1224.5,1222.5,0.7507289]
[1760122772589,0.14217458,1224.5,1222.6,0.60854271]
[1760122773894,0.14217458,1224.5,1222.7,0.60854271]
[1760122774091,0.14217458,1224.5,1222.8,0.60854271]
[1760122775094,0.14217458,1224.5,1222.9,0.60854271]
[1760122776390,0.14217458,1224.5,1222.8,0.60854271]
[1760122777191,0.14217458,1224.5,1222.9,0.60854271]
[1760122778490,0.14217458,1224.5,1222.6,0.60854271]
[1760122778891,0.14217458,1224.5,1222.7,0.60854271]
[1760122782594,0.14217458,1224.5,1222.6,0.60854271]
[1760122782798,0.14217458,1224.5,1222.7,0.60854271]
[1760122792305,0.14217458,1224.5,1222.8,0.60854271]
[1760122793308,0.14217458,1224.5,1222.7,0.60854271]
[1760122793607,0.14217458,1224.5,1222.8,0.60854271]
[1760122795104,0.14217458,1224.5,1222.4,0.60854271]
[1760122795608,0.94588274,1224.5,1222.5,0.60854271]
[1760122796209,0.80370816,1224.4,1222.3,0.75075331]
[1760122796508,0.80370816,1224.4,1222.4,0.60854271]
[1760122796709,0.80370816,1224.3,1222.4,0.60854271]
[1760122796909,0.80370816,1224.2,1222.3,0.60854271]
[1760122797109,0.80370816,1224.2,1222.2,0.60854271]
[1760122797307,0.80370816,1224.1,1222.3,0.60854271]
[1760122798006,0.80370816,1224.1,1222.2,0.60854271]
[1760122798310,0.80370816,1224.1,1222.3,0.60854271]
[1760122798811,0.80370816,1224.1,1222.2,0.60854271]
[1760122799412,0.80370816,1224.0,1222.2,0.60854271]
[1760122801214,0.80370816,1224.1,1222.2,0.60854271]
[1760122801514,0.80370816,1224.1,1222.3,0.60854271]
[1760122801711,0.80370816,1224.0,1222.3,0.60854271]
[1760122801914,0.80370816,1224.0,1222.4,0.60854271]
[1760122802316,0.80370816,1224.1,1222.4,0.60854271]
[1760122802617,0.14217458,1224.5,1222.1,0.14224082]
[1760122802618,0.80370816,1224.0,1222.5,0.60854271]
[1760122802815,0.80370816,1224.1,1222.6,0.60854271]
[1760122803114,0.94588274,1224.5,1222.8,0.60854271]
[1760122803616,0.14217458,1224.5,1222.9,0.60854271]
[1760122805217,0.14217458,1224.5,1223.1,0.60854271]
[1760122806817,0.14217458,1224.5,1222.9,0.60854271]
[1760122808618,0.14217458,1224.5,1223.1,0.60854271]
[1760122809118,0.14217458,1224.5,1223.0,0.60854271]
[1760122809625,0.14217458,1224.5,1223.1,0.60854271]
[1760122811424,0.14217458,1224.5,1223.2,0.60854271]
[1760122811626,0.80370816,1225.1,1223.5,0.60854271]
[1760122811825,0.14212812,1224.8,1223.5,0.60854271]
[1760122812325,0.14212812,1224.8,1223.6,0.60854271]
[1760122812729,0.80370816,1225.2,1223.6,0.60854271]
[1760122812931,0.80370816,1225.3,1223.7,0.60854271]
[1760122813125,0.14210085,1225.0,1223.7,0.60854271]
[1760122813629,0.14210085,1225.0,1223.6,0.60854271]
[1760122816528,0.14210085,1225.0,1223.4,0.60854271]
[1760122817226,0.14210085,1225.0,1223.3,0.60854271]
[1760122818928,0.14210085,1225.0,1223.2,0.60854271]
[1760122820235,0.14210085,1225.0,1223.3,0.60854271]
[1760122821735,0.14210085,1225.0,1223.2,0.60854271]
[1760122822235,0.14210085,1225.0,1223.3,0.60854271]
[1760122822932,0.14210085,1225.0,1223.2,0.60854271]
[1760122823936,0.14210085,1225.0,1223.1,0.60854271]
[1760122825240,0.14210085,1225.0,1223.2,0.60854271]
[1760122826843,0.14210085,1225.0,1223.3,0.60854271]
[1760122827141,0.14210085,1225.0,1223.5,0.60854271]
[1760122829939,0.14210085,1225.0,1223.1,1.21132725]
[1760122829940,0.14210085,1225.0,1223.4,0.60854271]
[1760122831340,0.14210085,1225.0,1223.3,0.60854271]
[1760122831640,0.14210085,1225.0,1223.1,0.60854271]
[1760122832742,0.14210085,1225.0,1223.2,0.60854271]
[1760122833441,0.14210085,1225.0,1223.1,0.60854271]
[1760122834044,0.14210085,1225.0,1223.0,0.60854271]
[1760122834242,0.14210085,1225.0,1223.1,0.60854271]
[1760122835143,0.14210085,1225.0,1223.2,0.60854271]
[1760122836247,0.14210085,1225.0,1223.0,0.60854271]
[1760122836947,0.14210085,1225.0,1222.9,0.60854271]
[1760122837249,0.14210085,1225.0,1223.0,0.60854271]
[1760122838651,0.14210085,1225.0,1223.1,0.60854271]
[1760122839751,0.14210085,1225.0,1223.2,0.60854271]
[1760122841751,0.14210085,1225.0,1223.5,0.60854271]
[1760122841949,0.14210085,1225.0,1223.2,0.8075515]
[1760122842246,0.14210085,1225.0,1223.5,0.60715018]
[1760122842751,0.80370816,1225.8,1223.7,0.60715018]
[1760122842949,0.14207764,1225.2,1223.7,0.60715018]
[1760122843747,0.80370816,1226.4,1224.0,0.60715018]
[1760122843949,0.14204951,1225.6,1224.0,0.60715018]
[1760122844151,0.80370816,1226.5,1224.0,0.60715018]
[1760122844350,2.00513214,1228.2,1224.4,0.60715018]
[1760122844651,0.1420156,1225.7,1224.5,0.5510959]
[1760122844947,2.00513214,1228.7,1224.6,0.5510959]
[1760122845154,0.14194667,1225.7,1224.7,0.5510959]
[1760122845356,2.00513214,1228.8,1224.8,0.5510959]
[1760122845649,0.14194493,1225.5,1224.4,0.60715018]
[1760122845850,2.00513214,1227.8,1224.5,0.55077599]
[1760122846049,2.00513214,1227.8,1224.6,0.55077599]
[1760122846248,0.14195072,1225.4,1224.7,0.55077599]
[1760122846450,2.00513214,1227.8,1224.3,0.60715018]
[1760122846653,0.14197099,1225.4,1224.4,0.55059098]
[1760122846853,0.14197099,1225.4,1224.5,0.55059098]
[1760122847055,2.00513214,1227.9,1224.6,0.55059098]
[1760122847351,0.14197389,1225.4,1224.7,0.55059098]
[1760122847555,2.00513214,1227.9,1224.3,0.60715018]
[1760122847751,0.14196809,1225.4,1224.4,0.55042084]
[1760122847955,0.14196809,1225.4,1224.5,0.55042084]
[1760122848156,2.00513214,1227.9,1224.6,0.55042084]
[1760122848349,0.14197389,1225.4,1224.7,0.55042084]
[1760122848554,2.00513214,1228.0,1224.3,0.60715018]
[1760122848849,0.1419652,1225.4,1224.4,0.55027047]
[1760122849053,0.1419652,1225.4,1224.5,0.55027047]
[1760122849255,2.00513214,1228.0,1224.6,0.55027047]
[1760122849449,2.00513214,1228.0,1224.3,0.60715018]
[1760122849450,0.14197099,1225.4,1224.7,0.55027047]
[1760122849652,2.00513214,1228.1,1224.3,0.60715018]
[1760122849855,2.00513214,1228.1,1224.4,0.55015187]
[1760122850053,0.1419623,1225.4,1224.5,0.55015187]
[1760122850253,2.00513214,1228.2,1224.6,0.55015187]
[1760122850453,2.00513214,1227.5,1224.1,0.60715018]
[1760122850656,0.14197794,1225.2,1224.2,0.55012974]
[1760122850857,2.00513214,1227.5,1224.3,0.55012974]
[1760122851058,0.14201734,1225.0,1223.9,0.60715018]
[1760122851358,2.00513214,1227.4,1224.0,0.55019871]
[1760122851552,2.00513214,1227.7,1224.1,0.55019871]
[1760122851756,0.14203473,1224.9,1224.2,0.55019871]
[1760122851952,2.00513214,1227.7,1223.7,0.60715018]
[1760122852257,0.14201734,1224.9,1223.8,1.15740876]
[1760122852453,2.00513214,1227.7,1223.9,0.55025858]
[1760122852657,0.14202893,1224.9,1224.0,0.55025858]
[1760122852857,0.14202893,1224.9,1224.1,0.55025858]
[1760122853055,2.00513214,1227.7,1224.2,0.55025858]
[1760122853260,0.14202024,1224.9,1223.8,0.60715018]
[1760122853460,0.14202024,1224.9,1223.9,0.55035942]
[1760122853661,2.00513214,1227.6,1224.0,0.55035942]
[1760122853862,0.14202198,1225.0,1224.1,0.55035942]
[1760122854157,2.00513214,1227.6,1224.2,0.55035942]
[1760122854362,0.14201502,1225.0,1223.8,0.60715018]
[1760122854561,0.14201502,1225.0,1223.9,0.55042475]
[1760122854761,2.00513214,1227.6,1224.0,0.55042475]
[1760122855061,0.14202372,1225.0,1224.1,0.55042475]
[1760122855261,2.00513214,1227.9,1224.2,0.55042475]
[1760122855455,0.14200633,1225.0,1224.3,0.55042475]
[1760122855656,2.00513214,1228.0,1223.7,0.60715018]
[1760122855958,0.14200053,1225.0,1223.8,0.55050831]
[1760122856161,0.14200053,1225.0,1223.9,0.55050831]
[1760122856358,2.00513214,1228.0,1224.0,0.55050831]
[1760122856560,0.14202256,1224.8,1224.1,0.55050831]
[1760122856764,2.00513214,1227.9,1224.2,0.55070351]
[1760122856963,2.00513214,1227.9,1223.6,0.60600974]
[1760122857162,0.1420185,1224.8,1223.7,0.55072009]
[1760122857362,2.00513214,1227.6,1223.8,0.55072009]
[1760122857564,2.00513214,1227.6,1223.9,0.55072009]
[1760122857769,0.14203299,1224.8,1224.0,0.55072009]
[1760122857966,2.00513214,1227.2,1223.5,0.60600974]
[1760122858264,0.14204458,1224.8,1223.6,0.55103045]
[1760122858465,2.00513214,1227.1,1223.7,0.55103045]
[1760122858665,2.00513214,1227.1,1223.8,0.55103045]
[1760122858863,0.14205618,1224.8,1223.9,0.55103045]
[1760122859162,2.00513214,1227.4,1224.0,0.55103045]
[1760122859462,0.14204169,1224.8,1223.5,0.60600974]
[1760122859668,2.00513214,1227.3,1223.6,0.55172656]
[1760122859966,0.14205618,1224.8,1223.7,0.55172656]
[1760122860267,2.00513214,1227.3,1223.5,0.60600974]
[1760122860268,2.00513214,1227.3,1223.8,0.55172656]
[1760122860467,0.14205038,1224.8,1223.9,0.55172656]
[1760122860766,2.00513214,1227.3,1224.0,0.55172656]
[1760122860963,0.14204458,1224.8,1223.5,0.60600974]
[1760122861168,2.00513214,1227.3,1223.6,0.5517714]
[1760122861468,0.14205502,1224.8,1223.7,0.5517714]
[1760122861665,0.14205502,1224.8,1223.8,0.5517714]
[1760122861869,2.00513214,1227.2,1223.9,0.5517714]
[1760122862068,0.14205212,1224.8,1224.0,0.5517714]
[1760122862263,2.00513214,1227.3,1223.5,0.60600974]
[1760122862569,0.14204053,1224.8,1223.6,0.55731865]
[1760122862769,0.14204053,1224.8,1223.7,0.55731865]
[1760122863068,0.14205502,1224.8,1223.8,0.55731865]
[1760122863264,0.14205502,1224.8,1223.9,0.55731865]
[1760122863465,0.14205502,1224.8,1224.0,0.55731865]
[1760122863663,0.14205502,1224.8,1223.5,0.60600974]
[1760122863869,0.14205502,1224.8,1223.6,0.55747891]
[1760122864068,0.14205502,1224.8,1223.7,0.55747891]
[1760122864265,0.14205502,1224.8,1223.8,0.55747891]
[1760122864470,0.14205502,1224.8,1223.9,0.55747891]
[1760122864671,0.14205502,1224.8,1224.0,0.55747891]
[1760122864869,0.14205502,1224.8,1223.5,0.60600974]
[1760122865070,0.14205502,1224.8,1223.6,0.55758549]
[1760122865268,0.14205502,1224.8,1223.7,0.55758549]
[1760122865472,0.14205502,1224.8,1223.8,0.55758549]
[1760122865673,0.14205502,1224.8,1223.9,0.55758549]
[1760122865970,0.14205502,1224.8,1224.0,0.55758549]
[1760122866168,0.14205502,1224.8,1224.1,0.55758549]
[1760122866474,0.14205502,1224.8,1223.5,0.60600974]
[1760122866772,0.14205502,1224.8,1223.6,0.55772619]
[1760122866969,0.14205502,1224.8,1223.7,0.55772619]
[1760122867171,0.14205502,1224.8,1223.8,0.55772619]
[1760122867371,0.14205502,1224.8,1223.9,0.55772619]
[1760122867570,0.14205502,1224.8,1223.4,0.60600974]
[1760122867772,0.14205502,1224.8,1223.5,0.55786128]
[1760122867968,0.14205502,1224.8,1223.6,0.55786128]
[1760122868168,0.14205502,1224.8,1223.7,0.55786128]
[1760122868469,0.14205502,1224.8,1223.8,0.55786128]
[1760122868674,0.14205502,1224.8,1223.9,0.55786128]
[1760122868873,0.14205502,1224.8,1223.4,0.60600974]
[1760122869071,0.14205502,1224.8,1223.5,0.55804198]
[1760122869276,0.14205502,1224.8,1223.6,0.55804198]
[1760122869571,0.14205502,1224.8,1223.7,0.55804198]
[1760122869773,0.14205502,1224.8,1223.8,0.55804198]
[1760122869971,0.14205502,1224.8,1223.9,0.55804198]
[1760122870270,0.14205502,1224.8,1223.4,0.60600974]
[1760122870474,0.14205502,1224.8,1223.5,0.55825375]
[1760122870670,0.14205502,1224.8,1223.6,0.55825375]
[1760122870878,0.14205502,1224.8,1223.7,0.55825375]
[1760122871070,0.14205502,1224.8,1223.8,0.55825375]
[1760122871374,0.14205502,1224.8,1223.9,0.55825375]
[1760122871669,0.14205502,1224.8,1223.4,0.60600974]
[1760122871870,0.14205502,1224.8,1223.5,0.55837797]
[1760122872071,0.14205502,1224.8,1223.6,0.55837797]
[1760122872273,0.14205502,1224.8,1223.7,0.55837797]
[1760122872471,0.14205502,1224.8,1223.3,0.60600974]
[1760122872671,0.14205502,1224.8,1223.4,0.55836934]
[1760122872971,0.14205502,1224.8,1223.5,0.55836934]
[1760122873171,0.14205502,1224.8,1223.6,0.55836934]
[1760122873471,0.14205502,1224.8,1223.7,0.55836934]
[1760122873673,0.14205502,1224.8,1223.1,0.60600974]
[1760122873876,0.14205502,1224.8,1223.2,0.55842046]
[1760122874171,0.14205502,1224.8,1223.3,0.55842046]
[1760122874376,0.14205502,1224.8,1222.8,0.60600974]
[1760122874575,0.14205502,1224.8,1222.9,0.55841104]
[1760122874776,0.14205502,1224.8,1222.5,0.60600974]
[1760122875075,0.14205502,1224.8,1222.6,0.55854757]
[1760122875276,0.14205502,1224.8,1222.7,0.55854757]
[1760122875475,0.14205502,1224.8,1222.8,0.55854757]
[1760122875776,0.14205502,1224.8,1222.2,0.60600974]
[1760122876072,0.14205502,1224.8,1222.3,0.55659038]
[1760122876275,0.14205502,1224.8,1222.4,0.55659038]
[1760122876475,0.14205502,1224.8,1222.5,0.55659038]
[1760122876770,0.14205502,1224.8,1222.6,0.55659038]
[1760122877075,0.14205502,1224.8,1222.2,0.60600974]
[1760122877272,0.14205502,1224.8,1222.4,0.60600974]
[1760122877471,0.14205502,1224.8,1222.5,0.55545967]
[1760122877674,0.14205502,1224.8,1222.6,0.55545967]
[1760122877870,0.14205502,1224.8,1222.7,0.55545967]
[1760122878071,0.14205502,1224.8,1222.8,0.55545967]
[1760122878372,0.14205502,1224.8,1222.1,0.74825056]
[1760122878570,0.14205502,1224.8,1222.2,0.55501504]
[1760122878771,0.14205502,1224.8,1222.3,0.55501504]
[1760122878971,0.14205502,1224.8,1222.4,0.55501504]
[1760122879175,0.14205502,1224.8,1222.5,0.55501504]
[1760122879375,0.14205502,1224.8,1222.6,0.55501504]
[1760122879672,0.14205502,1224.8,1222.7,0.55501504]
[1760122879874,0.14205502,1224.8,1222.8,0.55501504]
[1760122880078,0.14205502,1224.8,1222.9,0.55501504]
[1760122880378,0.14205502,1224.8,1223.0,0.55409307]
[1760122880577,0.14205502,1224.8,1223.1,0.55404479]
[1760122880873,0.14205502,1224.8,1222.8,0.60600974]
[1760122881074,0.14205502,1224.8,1222.9,0.55403973]
[1760122881274,0.14205502,1224.8,1223.0,0.55403973]
[1760122881472,0.14205502,1224.8,1222.3,0.60600974]
[1760122881678,0.14205502,1224.8,1222.4,1.15996463]
[1760122881876,0.14205502,1224.8,1222.5,0.55395489]
[1760122882078,0.14205502,1224.8,1222.6,0.55395489]
[1760122882277,0.14205502,1224.8,1222.7,0.55395489]
[1760122882579,0.14205502,1224.8,1222.8,0.55395489]
[1760122882778,0.14205502,1224.8,1222.9,0.55395489]
[1760122882981,0.14205502,1224.8,1223.0,0.55395489]
[1760122883181,0.14205502,1224.8,1223.1,0.55395489]
[1760122883383,0.14205502,1224.8,1222.6,0.60600974]
[1760122883576,0.14205502,1224.8,1222.7,0.55339796]
[1760122883780,0.14205502,1224.8,1222.8,0.55339796]
[1760122883981,0.14205502,1224.8,1222.9,0.55339796]
[1760122884182,0.14205502,1224.8,1223.0,1.1594077]
[1760122884382,0.14205502,1224.8,1223.1,0.55339796]
[1760122884681,0.14205502,1224.8,1223.2,0.55339796]
[1760122884881,0.14205502,1224.8,1223.3,0.55339796]
[1760122885080,0.14205502,1224.8,1223.4,0.55339796]
[1760122885283,0.14205502,1224.8,1223.0,0.60600974]
[1760122885579,0.14205502,1224.8,1223.1,0.55312581]
[1760122885778,0.14205502,1224.8,1223.2,0.55312581]
[1760122885980,0.14205502,1224.8,1223.3,0.55312581]